{"text_format":"1","workbook":"xlsx","n_sheets":5,"sheets":["hiddenSheet","Sheet1","ROS-skjema","Referanser-eksterne","Sheet3"],"not_rendered":{"charts":0,"images":0,"macros":0,"external_links":0,"defined_names":28,"comments":0,"pivot_tables":0},"unopened":[],"bounds":{"document_bytes":16777216,"sheet_cells":100000,"rows_first":2000,"rows_last":500,"rows_between":2000,"halvings":0,"cell_chars":16384,"cell_head_chars":4096},"cells_cut":0,"cells_raw":0,"read":"whole","date_system":"1900"}

{"sheet":"hiddenSheet","index":0,"n_rows":12,"n_cols":6,"rows_kept":12,"cut":false,"hidden":true,"merged":[]}
["nei","Sykehuset i Vestfold HF",null,null,null,"Referanser_Ref"]
["UB","D27645",null,null,null,"0"]
["DOK","Helhetlig risikovurdering Brann – brannforebyggende arbeid",null,null,null,"Referanser_Ved"]
["EK_Avdeling¤2#4¤2# ¤3#EK_Avsnitt¤2#4¤2# ¤3#EK_Bedriftsnavn¤2#1¤2#Sykehuset i Vestfold HF¤3#EK_GjelderFra¤2#0¤2#15.08.2022¤3#EK_KlGjelderFra¤2#0¤2#¤3#EK_Opprettet¤2#0¤2#15.08.2022¤3#EK_Utgitt¤2#0¤2#15.08.2022¤3#EK_IBrukDato¤2#0¤2#15.08.2022¤3#EK_DokumentID¤2#0¤2#D27645¤3#EK_DokTittel¤2#0¤2#Risikovurdering Brann – brannforebyggende arbeid¤3#EK_DokType¤2#0¤2#Skjema¤3#EK_DocLvlShort¤2#0¤2# ¤3#EK_DocLevel¤2#0¤2# ¤3#EK_EksRef¤2#2¤2# 0\t¤3#EK_Erstatter¤2#0¤2# ¤3#EK_ErstatterD¤2#0¤2# ¤3#EK_Signatur¤2#0¤2#Jo Kallerud, Branningeniør¤3#EK_Verifisert¤2#0¤2#- Jo Kallerud¤3#EK_Hørt¤2#0¤2# ¤3#EK_AuditReview¤2#2¤2# ¤3#EK_AuditApprove¤2#2¤2# ¤3#EK_Gradering¤2#0¤2#Åpen¤3#EK_Gradnr¤2#4¤2#0¤3#EK_Kapittel¤2#4¤2# ¤3#EK_Referanse¤2#2¤2# 0\t¤3#EK_RefNr¤2#0¤2#1.4.7.1.8¤3#EK_Revisjon¤2#0¤2#1.00¤3#EK_Ansvarlig¤2#0¤2#Jo Kallerud¤3#EK_SkrevetAv¤2#0¤2#Jo Kallerud, Branningeniør¤3#EK_Godkjenn2¤2#0¤2# ¤3#EK_UText2¤2#0¤2# ¤3#EK_UText3¤2#0¤2# ¤3#EK_UText4¤2#0¤2# ¤3#EK_Status¤2#0¤2#I bruk¤3#EK_Stikkord¤2#0¤2#¤3#EK_SuperStikkord¤2#0¤2#¤3#EK_Rapport¤2#3¤2#¤3#EK_EKPrintMerke¤2#0¤2#Utskrift er kun gyldig på utskriftsdato¤3#EK_Watermark¤2#0¤2#¤3#EK_Utgave¤2#0¤2#1.00¤3#EK_Merknad¤2#7¤2#¤3#EK_VerLogg¤2#2¤2#Ver. 1.00 - 15.08.2022|¤3#EK_RF1¤2#4¤2# ¤3#EK_RF2¤2#4¤2# ¤3#EK_RF3¤2#4¤2# ¤3#EK_RF4¤2#4¤2# ¤3#EK_RF5¤2#4¤2# ¤3#EK_RF6¤2#4¤2# ¤3#EK_RF7¤2#4¤2# ¤3#EK_RF8¤2#4¤2# ¤3#EK_RF9¤2#4¤2# ¤3#EK_Mappe1¤2#4¤2# ¤3#EK_Mappe2¤2#4¤2# ¤3#EK_Mappe3¤2#4¤2# ¤3#EK_Mappe4¤2#4¤2# ¤3#EK_Mappe5¤2#4¤2# ¤3#EK_Mappe6¤2#4¤2# ¤3#EK_Mappe7¤2#4¤2# ¤3#EK_Mappe8¤2#4¤2# ¤3#EK_Mappe9¤2#4¤2# ¤3#EK_DL¤2#0¤2#8¤3#EK_GjelderTil¤2#0¤2#15.08.2024¤3#EK_Vedlegg¤2#2¤2# 0\t¤3#EK_AvdelingOver¤2#4¤2# ¤3#EK_HRefNr¤2#0¤2# ¤3#EK_HbNavn¤2#0¤2# ¤3#EK_DokRefnr¤2#4¤2#0001040701¤3#EK_Dokendrdato¤2#4¤2#15.08.2022 08:40:52¤3#EK_HbType¤2#4¤2# ¤3#EK_Offisiell¤2#4¤2# ¤3#EK_VedleggRef¤2#4¤2#1.4.7.1.8¤3#EK_Strukt00¤2#5¤2#¤5#1¤5#Overordnet nivå - Nivå 1¤5#0¤5#0¤4#.¤5#4¤5#Helse- miljø og sikkerhetsarbeid¤5#1¤5#0¤4#.¤5#7¤5#Brannforebyggende arbeid¤5#0¤5#0¤4#.¤5#1¤5#Styrende dokumenter for brannvern¤5#0¤5#0¤4#\\¤3#EK_Strukt01¤2#5¤2#¤3#EK_Strukt04¤2#5¤2#¤3#EK_Pub¤2#6¤2#¤3#EKR_DokType¤2#0¤2# ¤3#EKR_Doktittel¤2#0¤2# ¤3#EKR_DokumentID¤2#0¤2# ¤3#EKR_RefNr¤2#0¤2# ¤3#EKR_Gradering¤2#0¤2# ¤3#EKR_Signatur¤2#0¤2# ¤3#EKR_Verifisert¤2#0¤2# ¤3#EKR_Hørt¤2#0¤2# ¤3#EKR_AuditReview¤2#2¤2# ¤3#EKR_AuditApprove¤2#2¤2# ¤3#EKR_AuditFinal¤2#2¤2# ¤3#EKR_Dokeier¤2#0¤2# ¤3#EKR_Status¤2#0¤2# ¤3#EKR_Opprettet¤2#0¤2# ¤3#EKR_Endret¤2#0¤2# ¤3#EKR_Ibruk¤2#0¤2# ¤3#EKR_Rapport¤2#3¤2# ¤3#EKR_Utgitt¤2#0¤2# ¤3#EKR_SkrevetAv¤2#0¤2# ¤3#EKR_UText1¤2#0¤2# ¤3#EKR_UText2¤2#0¤2# ¤3#EKR_UText3¤2#0¤2# ¤3#EKR_UText4¤2#0¤2# ¤3#EKR_DokRefnr¤2#4¤2# ¤3#EKR_Gradnr¤2#4¤2# ¤3#EKR_Strukt00¤2#5¤2#¤5#1¤5#Overordnet nivå - Nivå 1¤5#0¤5#0¤4#.¤5#4¤5#Helse- miljø og sikkerhetsarbeid¤5#1¤5#0¤4#.¤5#7¤5#Brannforebyggende arbeid¤5#0¤5#0¤4#.¤5#1¤5#Styrende dokumenter for brannvern¤5#0¤5#0¤4#\\¤3#","Skjema",null,null,null,"0"]
[2.2000000000000002,"Jo Kallerud, Branningeniør",null,null,null,"Referanser_Eks"]
[0,"Jo Kallerud, Branningeniør",null,null,null,"0"]
["lagre","21.08.2023"]
["ikke print","1.01"]
["___","1.4.8.1.8"]
[-11,"21.08.2023"]
["___"]
["___"]

{"sheet":"Sheet1","index":1,"n_rows":0,"n_cols":0,"rows_kept":0,"cut":false,"hidden":false,"merged":[]}

{"sheet":"ROS-skjema","index":2,"n_rows":53,"n_cols":18,"rows_kept":53,"cut":false,"hidden":false,"merged":[[50,0,50,1],[51,0,51,1],[52,0,52,1],[45,1,45,3],[46,0,46,1],[46,2,46,6],[47,0,47,1],[48,0,48,1],[49,0,49,1],[42,2,42,4],[42,5,42,6],[42,7,42,10],[42,13,42,14],[42,15,42,17],[43,2,43,4],[43,5,43,6],[43,7,43,10],[43,13,43,14],[43,15,43,17],[40,2,40,4],[40,5,40,6],[40,7,40,10],[40,13,40,14],[40,15,40,17],[41,2,41,4],[41,5,41,6],[41,7,41,10],[41,13,41,14],[41,15,41,17],[38,15,38,17],[39,2,39,4],[39,5,39,6],[39,7,39,10],[39,13,39,14],[39,15,39,17],[31,2,31,9],[33,2,33,9],[35,2,35,9],[37,1,37,3],[37,12,37,13],[38,2,38,4],[38,5,38,6],[38,7,38,10],[38,13,38,14],[28,1,28,3],[28,9,28,11],[28,17,28,19],[29,1,29,3],[29,9,29,11],[29,17,29,19],[26,1,26,3],[26,9,26,11],[26,17,26,19],[27,1,27,3],[27,9,27,11],[27,17,27,19],[24,1,24,3],[24,9,24,11],[24,17,24,19],[25,1,25,3],[25,9,25,11],[25,17,25,19],[22,1,22,3],[22,9,22,11],[22,17,22,19],[23,1,23,3],[23,9,23,11],[23,17,23,19],[20,1,20,3],[20,9,20,11],[20,17,20,19],[21,1,21,3],[21,9,21,11],[21,17,21,19],[18,1,18,3],[18,9,18,11],[18,17,18,19],[19,1,19,3],[19,9,19,11],[19,17,19,19],[16,1,16,3],[16,9,16,11],[16,17,16,19],[17,1,17,3],[17,9,17,11],[17,17,17,19],[14,1,14,3],[14,9,14,11],[14,17,14,19],[15,1,15,3],[15,9,15,11],[15,17,15,19],[11,17,11,19],[12,1,12,3],[12,9,12,11],[12,17,12,19],[13,1,13,3],[13,9,13,11],[13,17,13,19],[8,3,8,5],[8,6,8,7],[8,8,8,10],[8,12,8,16],[9,12,9,16],[11,1,11,3],[11,9,11,11],[6,3,6,5],[6,6,6,7],[6,8,6,10],[6,12,6,16],[7,3,7,5],[7,6,7,7],[7,8,7,10],[7,12,7,16],[4,0,4,2],[4,3,4,5],[4,6,4,7],[4,8,4,10],[4,12,4,16],[5,3,5,5],[5,6,5,7],[5,8,5,10],[5,12,5,16],[0,1,0,5],[1,2,1,4],[1,5,1,11],[1,14,1,15],[3,0,3,2],[3,3,3,5],[3,6,3,7],[3,8,3,10],[3,12,3,14]]}
[null,"Risikoanalyse"]
[null,null,"Tema for analyse:",null,null,"Brann – brannforebyggende arbeid",null,null,null,null,null,null,null,"Dato:"]
[]
["Avdeling/post/enhet",null,null,"Deltakere - navn",null,null,"stilling",null,"avd./seksjon",null,null,null,"Analysen er utført ihht. til krav i:"]
[null,null,null,null,null,null,null,null,null,null,null,null,"Brann og eksplosjonsvernloven"]
[null,null,null,null,null,null,null,null,null,null,null,null,"Forskrift om brannforebygging"]
[null,null,null,null,null,null,null,null,null,null,null,null,"Forskrift om systematisk helse-, miljø- og sikkerhetsarbeid i virksomheter "]
[]
[]
[]
[]
["Nr.","Identifisert risiko/hendelse",null,null,"Sannsynlighet","Konsekvens P","Konsekvens M","Konsekvens Ø","Risiko","Tiltak",null,null,"Sannsynlighet","Konsekvens P","Konsekvens M","Konsekvens Ø","Risiko - Ny","Kommentar"]
[1,null,null,null,0,0,0,0,{"$f":"E13*((F13+G13+H13)/3)","v":0},null,null,null,0,0,0,0,{"$f":"M13*((N13+O13+P13)/3)","v":0}]
[2,null,null,null,0,0,0,0,{"$f":"E14*((F14+G14+H14)/3)","v":0},null,null,null,0,0,0,0,{"$f":"M14*((N14+O14+P14)/3)","v":0}]
[3,null,null,null,0,0,0,0,0,null,null,null,0,0,0,0,0]
[4,null,null,null,0,0,0,0,0,null,null,null,0,0,0,0,0]
[5,null,null,null,0,0,0,0,0,null,null,null,0,0,0,0,0]
[6,null,null,null,0,0,0,0,0,null,null,null,0,0,0,0,0]
[7,null,null,null,0,0,0,0,0,null,null,null,0,0,0,0,0]
[8,null,null,null,0,0,0,0,0,null,null,null,0,0,0,0,0]
[9,null,null,null,0,0,0,0,0,null,null,null,0,0,0,0,0]
[10,null,null,null,0,0,0,0,0,null,null,null,0,0,0,0,0]
[11,null,null,null,0,0,0,0,0,null,null,null,0,0,0,0,0]
[12,null,null,null,0,0,0,0,0,null,null,null,0,0,0,0,0]
[13,null,null,null,0,0,0,0,0,null,null,null,0,0,0,0,0]
[14,null,null,null,0,0,0,0,0,null,null,null,0,0,0,0,0]
[15,null,null,null,0,0,0,0,0,null,null,null,0,0,0,0,0]
[16,null,null,null,0,0,0,0,0,null,null,null,0,0,0,0,0]
[]
["Eksemp.","Brann i kaffetrakter",null,null,2,5,2,5,8,"Rutiner, tidsur",null,null,1,3,1,2,2,"Rutiner 1.4.7.1.4 og 1.4.7.1.5"]
[]
[null,null,"Risiko er ikke akseptabel og praktiske eller organisatoriske tiltak må iverksettes"]
[]
[null,null,"Risiko kan være akseptabel, men organisatoriske tiltak  /rutiner bør iverksettes"]
[]
[null,null,"Risiko er akseptabel, og ingen ytterligere tiltak er nødvendig"]
[]
[null,"Beskrivelse av konsekvens",null,null,null,null,null,null,null,null,null,null,"Beskrivelse av Sannsynlighet"]
["Verdi","Betegnelse","Personer",null,null,"Miljø",null,"Materielle verdier/økonomisk tap",null,null,null,null,"Verdi","Betegnelse",null,"Forklaring"]
[1,"Ufarlig","Ikke behov for førstehjelp",null,null,"Ikke skade på miljø",null,"Ubetydelige skader på materiell: Skader under kr. 50.001",null,null,null,null,1,"Lite sannsynlig",null,"Sjeldnere enn en gang pr. 10 år"]
[2,"Farlig ","Behov for førstehjelp",null,null,"Mindre miljøskade",null,"Mindre materielle skader: kr. 50.000 - 250.000\n",null,null,null,null,2,"Mindre sannsynlig",null,"2 gang hvert 5 - 10 år"]
[3,"Meget farlig","Fravær utover skadedag",null,null,"Omfattende miljøskade",null,"Betydelige materielle skader. Skader: kr. 250.000 - 1.000.001",null,null,null,null,3,"Sannsynlig",null,"2 gang hvert 1 - 5 år"]
[4,"Kritisk ","Varige personskader",null,null,"Vesentlig miljøskade",null,"Alvorlige materielle skader; Skader: kr.1.000.000 - 5.000.001",null,null,null,null,4,"Meget sannsynlig",null,"1- 10 ganger hvert år"]
[5,"Katastrofalt ","Dødsfall",null,null,"Fullstendig miljøskade",null,"Fullstendig materiell ødeleggelse. Skader: over kr. 5.000.001",null,null,null,null,5,"Svært sannsynlig",null,"Mer enn 10 ganger i året"]
[]
[null,"Akseptkriterier:"]
["Sannsynlighet",null,"Konsekvens"]
[null,null,"1 Ufarlig","2 Farlig ","3 Meget farlig","4 Kritisk ","5 Katastrofalt "]
["5 Svært sannsynlig",null,5,10,15,20,25]
["4 Meget sannsynlig",null,4,8,12,16,20]
["3 Sannsynlig",null,3,6,9,12,15]
["2 Mindre sannsynlig",null,2,4,6,8,10]
["1 Lite sannsynlig",null,1,2,3,4,5]

{"sheet":"Referanser-eksterne","index":3,"n_rows":21,"n_cols":3,"rows_kept":21,"cut":false,"hidden":false,"merged":[[1,1,1,5]]}
[]
[null,"Det er krav om ROS i mange lover og forskrifter"]
[]
[null,"Aktuelle lover:","Forskrifter:"]
[null,"Brann og eksplosjonsvernloven","Forskrift om brannforebygging"]
[null,null,"Forskrift om organisering og dimensjonering av brannvesen"]
[null,null,"Forskrift om håndtering av brannfarlig, reaksjonsfarlig og trykksatt stoff "]
[]
[]
[]
[]
[null,null,"Forskrifter:"]
[null,"Lov om tilsyn med elektriske anlegg og elektrisk utstyr (el-tilsynsloven)","Forskrift om elektriske lavspenningsanlegg"]
[null,null,"Forskrift om sikkerhet ved arbeid i og drift av elektriske anlegg"]
[]
[]
[]
[]
[]
[null,null,"Forskrifter:"]
[null,"Lov om arbeidsmiljø, arbeidstid og stillingsvern mv.(arbeidsmiljøloven)","Forskrift om systematisk helse-, miljø- og sikkerhetsarbeid i virksomheter "]

{"sheet":"Sheet3","index":4,"n_rows":0,"n_cols":0,"rows_kept":0,"cut":false,"hidden":false,"merged":[]}